Cogmind - Beta 17.1 @@@ ROGUE MODE // 2026.08.27 @ 16:03:32 Player: Yukon_XV Result: Destroyed by G-47 Trooper with Particle Gun Performance ------------- Evolutions (2) 1000 Regions Visited (4) 800 Robots Destroyed (65) 325 Value Destroyed (1819) 1819 Prototype IDs (2) 40 Alien Tech Used (0) 0 Bonus (0) 0 TOTAL SCORE: 3984 Bonus ------- None Cogmind --------- Core Integrity 0/550 Matter 6/300 Energy 100/100 System Corruption 0% Temperature Cool (9) Movement Core (800) Ox15 Location -8/Materials Parts ------- > --- POWER (1) -------- (None) > --- PROPULSION (2) --- (None) > --- UTILITY (6) ------ High-capacity Storage Unit Improved Targeting Computer Improved Targeting Computer Improved Targeting Computer Advanced Targeting Computer > --- WEAPON (2) ------- Rocket Launcher Heavy Flail > --- INVENTORY (20) --- Light Ion Engine Medium Storage Unit Weight Redist. System Advanced Visual Processing Unit Hardlight Generator Hacking Suite System Shield Advanced Beam Cannon Advanced Beam Cannon Advanced Beam Cannon Advanced Beam Cannon Assault Rifle Improved Light Cannon Assault Cannon Assault Cannon Peak State ------------ > --- POWER ------------ Ion Engine > --- PROPULSION ------- Wheel Wheel > --- UTILITY ---------- High-capacity Storage Unit Improved Targeting Computer Improved Targeting Computer Improved Targeting Computer Advanced Targeting Computer Hardened Medium Armor Plating > --- WEAPON ----------- Flak Cannon Flak Cannon > --- INVENTORY -------- Ion Engine Medium Storage Unit Weight Redist. System Advanced Visual Processing Unit Improved Targeting Computer Hardened Medium Armor Plating Hardlight Generator EM Shotgun EM Shotgun Advanced Beam Cannon Advanced Beam Cannon Advanced Beam Cannon Advanced Beam Cannon Assault Rifle Improved Light Cannon Assault Cannon Assault Cannon Rocket Launcher Heavy Flail [Rating: 26] Favorites ----------- Power Light Ion Engine Engine Light Ion Engine Power Core Nuclear Core Propulsion Wheel Leg Aluminum Leg Wheel Wheel Utility Improved Targeting Computer Device Seismic Detector Storage High-capacity Storage Unit Processor Improved Targeting Computer Protection Hardened Medium Armor Plating Weapon Advanced Beam Cannon Energy Gun Small Laser Energy Cannon Advanced Beam Cannon Ballistic Gun Assault Rifle Ballistic Cannon Improved Light Cannon Launcher Rocket Launcher Special Weapon Mining Laser Impact Weapon Heavy Flail Build | -11 -10 -9 -9 -8 ------- Run | Yrd Mat Mat Min Mat Slots Evolved 4 | . . 2 . 2 Power . | . . . . . Propulsion . | . . . . . Utility 4 | . . 2 . 2 Weapon . | . . . . . Parts Attached 48 | 7 4 17 1 19 Power 6 | 1 . 3 . 2 Engine 5 | 1 . 2 . 2 Core 1 | . . 1 . . Reactor . | . . . . . Propulsion 11 | 2 2 4 . 3 Treads . | . . . . . Leg 2 | 2 . . . . Wheel 9 | . 2 4 . 3 Hover . | . . . . . Flight . | . . . . . Utility 15 | 2 1 6 1 5 Device 1 | 1 . . . . Storage 2 | 1 1 . . . Processor 8 | . . 4 . 4 Hackware . | . . . . . Protection 4 | . . 2 1 1 Artifact . | . . . . . Weapon 16 | 2 1 4 . 9 Energy Gun 3 | 1 . . . 2 Energy Cannon 3 | . . 2 . 1 Ballistic Gun 1 | 1 . . . . Ballistic Cannon 6 | . . 2 . 4 Launcher 1 | . . . . 1 Special Weapon 1 | . 1 . . . Impact Weapon 1 | . . . . 1 Slashing Weapon . | . . . . . Piercing Weapon . | . . . . . Special Melee Weapon . | . . . . . Unidentified Prototypes 2 | . . 2 . . Parts Lost 21 | . . 6 . 15 Power 4 | . . 1 . 3 Propulsion 5 | . . 1 . 4 Utility 7 | . . 3 . 4 Weapon 5 | . . 1 . 4 Highest Loss Streak 10 | . . 3 . 10 To Critical Strikes . | . . . . . Average Backups 16 | 3 10 18 20 18 Power 1 | . 1 1 1 . Propulsion 1 | 2 1 2 2 . Utility 5 | . 5 6 8 6 Weapon 7 | . 2 8 9 10 Tool/Special . | . . . . . Unused Backups 16 | 1 1 5 . 9 Power 2 | . . 1 . 1 Propulsion 1 | . 1 . . . Utility 9 | . . 3 . 6 Weapon 4 | 1 . 1 . 2 Tool/Special . | . . . . . Average Slot Usage (%) 95 | . 100 96 100 90 Engine 8 | . 14 5 11 7 Core 1 | . . 4 . . Leg 1 | . 8 . . . Wheel 18 | . 19 21 22 13 Device 4 | . 14 1 . 1 Storage 11 | . 14 11 11 9 Processor 20 | . . 20 22 35 Protection 5 | . . 9 11 4 Energy Gun 3 | . 14 . . . Energy Cannon 7 | . . 12 11 5 Ballistic Gun 2 | . 12 . 2 . Ballistic Cannon 6 | . . 6 8 11 Special Weapon 1 | . 1 2 . . Peak Build Rating 26 | 7 8 21 19 26 Average Rating 15 | 5 7 16 19 22 On Entrance 10 | . 7 8 18 19 Avg Prop Armor Cover (%) 18 | 31 9 3 . . Naked Turns . | . . . . . Heaviest Build 65 | 12 47 63 61 65 Greatest Support 26 | 20 20 20 20 26 Greatest Overweight (x) 19 | . 4 5 3 19 Average Overweight (x) 2 | . 1 2 2 2 Largest Inventory Capacity 20 | 8 20 20 20 20 Average Capacity 18 | 7 16 20 20 20 Most Carried 20 | 6 14 20 20 20 Average Carried 16 | 3 10 18 20 18 Final Capacity 20 | 8 20 20 20 20 Final Carried 20 | 5 13 20 20 15 Class Distribution -------------------- 100% | Mutant Dominant Class ---------------- Mutant | -10/Materials Mutant | -9/Materials Mutant | -9/Mines Mutant | -8/Materials Resources | -11 -10 -9 -9 -8 ----------- Run | Yrd Mat Mat Min Mat Matter Collected 1055 | 268 86 349 . 352 Remotely . | . . . . . Salvage Created 1823 | 32 82 855 . 854 Parts 102 | 5 12 53 . 32 Haulers Intercepted 3 | . 1 2 . . Recyclers Shooed 4 | 1 1 1 . 1 Parts Field Recycled . | . . . . . Retrieved Matter . | . . . . . Parts Self-Destructed . | . . . . . Prevented . | . . . . . Parts Restored . | . . . . . Kills | -11 -10 -9 -9 -8 ------- Run | Yrd Mat Mat Min Mat Combat Hostiles Destroyed 43 | . 1 19 . 23 Guns 1 | . 1 . . . Cannons 36 | . . 15 . 21 AOE 6 | . . 4 . 2 Classes Destroyed 11 | 1 3 5 . 2 Worker 7 | . . 4 . 3 Builder 2 | . 1 . . 1 Tunneler 2 | 2 . . . . Hauler 3 | . 1 2 . . Recycler 4 | . . . . 4 Operator 1 | . . . . 1 Watcher 3 | . . 2 . 1 Swarmer 7 | . 1 . . 6 Grunt 24 | . . 12 . 12 Duelist 2 | . . 2 . . Sentry 10 | . . 5 . 5 Best Kill Streak 19 | 2 2 7 . 19 Combat Bots Only 14 | . 1 6 . 14 Max Kills in Single Turn 5 | 1 1 5 . 4 Gunslinging . | . . . . . Exploded 4 | . . 4 . 2 Melee . | . . . . . Uniques/NPCs Destroyed . | . . . . . Combat | -11 -10 -9 -9 -8 -------- Run | Yrd Mat Mat Min Mat Hostile Shots Fired 304 | . 15 61 12 216 Missed 70 | . 4 9 . 57 Hits 234 | . 11 52 12 159 Projectile 234 | . 11 52 12 159 AOE 3 | . . . 3 . Critical Strikes 8 | . . 1 . 7 Damage Taken 3309 | . 83 786 204 2236 Core 872 | . 23 234 60 555 Absorbed by Shields . | . . . . . Redirected to Shielding 51 | . . 51 . . Core Remaining (%) 72 | 100 90 . 26 . Volleys Fired 185 | 7 27 70 1 80 Largest 2 | 2 2 2 1 2 Hottest 136 | 60 100 136 68 136 Shots Fired 262 | 14 46 85 1 116 Gun 55 | 14 38 . . 3 Cannon 197 | . . 83 1 113 Launcher . | . . . . . Special 10 | . 8 2 . . Kinetic 148 | 7 19 38 . 84 Thermal 111 | 7 27 47 1 29 Explosive . | . . . . . Electromagnetic 3 | . . . . 3 Robot Hit Streak 55 | 3 5 55 . 32 Robot Miss Streak 6 | 4 6 2 1 4 Penetration Max . | . . . . . Secondary Targets . | . . . . . Shots Hit Robots 191 | 7 17 73 . 94 Core Hits 113 | 3 5 27 . 78 Critical Kills 1 | . . . . 1 Critical Parts Destroyed . | . . . . . Critical Strikes 3 | . . . . 3 Meltdown 1 | . . . . 1 Blast 2 | . . . . 2 Melee Attacks . | . . . . . Impact . | . . . . . Slashing . | . . . . . Piercing . | . . . . . Sneak Attacks . | . . . . . Combat Hostiles . | . . . . . Follow-up Attacks . | . . . . . Damage Inflicted 4920 | 88 218 1834 . 2780 Guns 312 | 78 218 . . 16 Cannons 3518 | . . 1417 . 2101 Explosions 1079 | . . 417 . 662 Melee . | . . . . . Ramming 11 | 10 . . . 1 Kinetic 2281 | 38 120 557 . 1566 Thermal 1950 | 40 98 1277 . 535 Explosive 662 | . . . . 662 Electromagnetic 16 | . . . . 16 Impact . | . . . . . Slashing . | . . . . . Piercing . | . . . . . Highest Corruption . | . . . . . Average Corruption . | . . . . . Corruption Purged . | . . . . . Corruption Blocked . | . . . . . Overload Shots . | . . . . . Overflow Damage 150 | . . 71 . 79 Projectiles 12 | . . 10 . 2 Explosions 138 | . . 61 . 77 Melee . | . . . . . Knockbacks 35 | . . 3 . 32 Impact . | . . . . . Kinetic 33 | . . 3 . 30 Secondary 2 | . . . . 2 Self-Inflicted Damage 211 | . . 82 . 129 Shots 3 | . . 1 . 2 Rammed 2 | . . . . 2 Targets Rammed 5 | 3 . . . 2 Kicked 3 | 3 . . . . Crushed . | . . . . . Highest Temperature 423 | . 60 423 38 273 Average Temperature 73 | . 27 112 20 49 Received Heat Transfer 1332 | . . 285 66 981 Effects 3 | . . 3 . . Energy Bleed 1 | . . 1 . . Short Circuit 2 | . . 2 . . Siege Activations . | . . . . . Martial Activations . | . . . . . Shielding Activations . | . . . . . Robots Disrupted . | . . . . . Combat Hostiles . | . . . . . Robots Corrupted . | . . . . . Combat Hostiles . | . . . . . Parts Fried . | . . . . . Impact Corruptions . | . . . . . Robots Melted 1 | . . . . 1 Combat Hostiles . | . . . . . Parts Melted 10 | . . 8 . 2 Heat Transferred 3141 | 100 225 1854 . 962 Parts Sabotaged . | . . . . . Parts Stolen . | . . . . . Parts Stripped . | . . . . . Power Chain Reactions . | . . . . . Alert | -11 -10 -9 -9 -8 ------- Run | Yrd Mat Mat Min Mat Maximum Alert Level 2 | . . 1 . 2 Low Security (%) 76 | 100 100 67 100 69 Level 1 22 | . . 32 . 29 Level 2 . | . . . . 1 Level 3 . | . . . . . Level 4 . | . . . . . Level 5 . | . . . . . High Security . | . . . . . Max Security . | . . . . . Peak Influence 400 | 5 35 254 70 400 Initial 70 | . . . 70 23 Average 98 | . 3 145 66 120 Influence Increases 1505 | 10 73 642 . 780 Destroy 0b10 Robot/C 860 | . 20 380 . 460 Destroy 0b10 Robot/NC 110 | 10 10 40 . 50 Destroy Leader 202 | . 2 98 . 102 Successful Hack 34 | . 18 16 . . Disable Machine 120 | . . 75 . 45 Destroy Structure 59 | . 8 33 . 18 Lose Combat Pursuer 120 | . 15 . . 105 Influence Decreases 1150 | 10 72 461 122 485 Entered New Map 150 | . . 1 112 37 Time Decay 800 | 10 72 400 10 308 Lost Part 200 | . . 60 . 140 Squads Dispatched 7 | . 1 1 . 5 Investigation 2 | . 1 1 . . Extermination . | . . . . . Reinforcement 2 | . . . . 2 Assault . | . . . . . Garrison 3 | . . . . 3 Intercept . | . . . . . Searches Triggered . | . . . . . Construction Impeded 1 | . . . . 1 Haulers Reinforced . | . . . . . Active Scanning Responses . | . . . . . Cargo Convoy Interrupts . | . . . . . Stealth | -11 -10 -9 -9 -8 --------- Run | Yrd Mat Mat Min Mat Distress Signals 5 | . . 3 . 2 Communications Jammed . | . . . . . Distress Signals . | . . . . . Times Spotted 84 | . 8 28 5 43 Peak Tracking Total 11 | . 3 6 5 11 Tactical Retreats 4 | . 1 . . 3 Traps | -11 -10 -9 -9 -8 ------- Run | Yrd Mat Mat Min Mat Traps Triggered 1 | . . 1 . . Indirectly . | . . . . . Trap Hack Attempts . | . . . . . Triggered . | . . . . . Disarmed . | . . . . . Reprogrammed . | . . . . . Reused . | . . . . . Traps Extracted . | . . . . . Installed . | . . . . . Triggered . | . . . . . Machines | -11 -10 -9 -9 -8 ---------- Run | Yrd Mat Mat Min Mat Machines Disabled 8 | . . 5 . 3 Max in Single Turn 5 | . . 5 . 1 Machines Repaired . | . . . . . Machines Dismantled . | . . . . . Machines Sabotaged . | . . . . . Overloaded Fab Kills . | . . . . . Hacking | -11 -10 -9 -9 -8 --------- Run | Yrd Mat Mat Min Mat Machines Accessed 10 | . 3 5 . 2 Terminals 8 | . 3 3 . 2 Fabricators . | . . . . . Repair Stations 1 | . . 1 . . Recycling Units . | . . . . . Scanalyzers 1 | . . 1 . . Garrison Access . | . . . . . Total Hacks 26 | . 10 12 . 4 Successful 13 | . 5 7 . 1 Failed 13 | . 5 5 . 3 Catastrophic 1 | . 1 . . . Database Lockouts . | . . . . . Manual 6 | . . 4 . 2 Terminals 20 | . 10 6 . 4 Fabricators . | . . . . . Repair Stations 1 | . . 1 . . Recycling Units . | . . . . . Scanalyzers 5 | . . 5 . . Garrison Access . | . . . . . Terminal Hacks 6 | . 5 1 . . Level Access Points 1 | . 1 . . . Branch Access Points 1 | . . 1 . . Locate Traps 2 | . 2 . . . Patrol Status 1 | . 1 . . . Registered Components 1 | . 1 . . . Fabricator Hacks . | . . . . . Repair Station Hacks . | . . . . . Recycling Unit Hacks . | . . . . . Scanalyzer 4 | . . 4 . . Insert Component 1 | . . 1 . . Analyze 1 | . . 1 . . Retrieve Study 2 | . . 2 . . Garrison Access Hacks . | . . . . . Unauthorized Hacks 3 | . . 2 . 1 Terminals 3 | . . 2 . 1 Botnet 3 | . . 2 . 1 Fabricators . | . . . . . Repair Stations . | . . . . . Recycling Units . | . . . . . Scanalyzers . | . . . . . Garrison Access . | . . . . . Data Cores Recovered 1 | . . . . 1 Used . | . . . . . Hacking Detections 9 | . 3 4 . 2 Full Trace Events 1 | . 1 . . . Feedback Events . | . . . . . Feedback Blocked . | . . . . . Robot Schematics Acquired . | . . . . . Robots Built . | . . . . . Authchips . | . . . . . Time . | . . . . . Total Robot Build Rating . | . . . . . Part Schematics Acquired 1 | . . 1 . . Parts Built . | . . . . . Authchips . | . . . . . Time . | . . . . . Total Part Build Rating . | . . . . . Part Studies Acquired 2 | . . 2 . . Parts Repaired . | . . . . . Time . | . . . . . Parts Recycled . | . . . . . Recycled Matter . | . . . . . Retrieved Matter . | . . . . . Retrieved Components . | . . . . . Parts Scanalyzed 1 | . . 1 . . Part Schematics Acquired 1 | . . 1 . . Parts Damaged . | . . . . . Bothacking | -11 -10 -9 -9 -8 ------------ Run | Yrd Mat Mat Min Mat Used RIF Installer . | . . . . . Robots Hacked . | . . . . . Non-combat . | . . . . . Combat . | . . . . . Robot Hacks Applied . | . . . . . Relay Couplers Released . | . . . . . Fabnet Peak Effective % . | . . . . . Robots Rewired . | . . . . . Allies Hacked . | . . . . . Hacks Repelled . | . . . . . Allies | -11 -10 -9 -9 -8 -------- Run | Yrd Mat Mat Min Mat Total Allies . | . . . . . Largest Group . | . . . . . Highest-Rated Group . | . . . . . Highest-Rated Ally . | . . . . . Total Orders . | . . . . . Ally Attacks . | . . . . . Total Damage . | . . . . . Kills . | . . . . . Allies Corrupted . | . . . . . Allies Melted . | . . . . . Intel | -11 -10 -9 -9 -8 ------- Run | Yrd Mat Mat Min Mat Active Infowar (turns) 885 | 17 550 151 . 167 Seismic 885 | 17 550 151 . 167 Robot Analysis Total . | . . . . . Derelict Logs Recovered . | . . . . . Drone Launches . | . . . . . Drone Recoveries . | . . . . . Exploration | -11 -10 -9 -9 -8 ------------- Run | Yrd Mat Mat Min Mat Turns Passed 2508 | 113 550 1000 28 817 Spaces Moved 1398 | 80 327 605 20 366 Core 41 | 36 . . . 5 Treads . | . . . . . Legs 153 | 44 109 . . . Wheels 1204 | . 218 605 20 361 Hover . | . . . . . Flight . | . . . . . Fastest Speed 50 | 50 110 110 110 110 Average Speed 118 | 88 116 114 119 133 Slowest Speed 1000 | 120 140 155 125 1000 Overloaded Moves . | . . . . . Propulsion Burnouts . | . . . . . Robots Hopped . | . . . . . Potential Cave-ins 3 | . . . 3 . Cave-ins Triggered . | . . . . . Exploration Rate (%) 28 | 4 51 40 9 38 Regions Visited 4 Branch Regions 1 Pre-discovered Areas . | . . . . . Known Exits Taken 2 | . 1 1 . . Unknown Exits Taken 2 | 1 . . 1 . Scrap Searched . | . . . . . Spaces Dug 9 | . 8 1 . . Terrain Destroyed 54 | . 8 31 . 15 Melee . | . . . . . Projectile 11 | . 8 2 . 1 AOE 43 | . . 29 . 14 Terrain Rammed . | . . . . . Walls Destroyed . | . . . . . Machines Disabled . | . . . . . Actions | -11 -10 -9 -9 -8 --------- Run | Yrd Mat Mat Min Mat Total 1954 | 107 437 824 22 564 Wait 239 | . 64 98 . 77 Move 1394 | 79 326 604 19 366 Hop . | . . . . . Pick Up 47 | 10 10 18 . 9 Fast Attach 13 | 3 1 6 . 3 Attach 22 | 4 2 4 . 12 Detach 5 | . 2 1 . 2 Swap 22 | . 1 11 2 8 Drop 22 | 1 4 12 . 5 Fire 185 | 7 27 70 1 80 Melee . | . . . . . Ram 2 | . . . . 2 Kick 3 | 3 . . . . Crush . | . . . . . Escape Stasis . | . . . . . Rewire . | . . . . . Trap . | . . . . . Miscellaneous . | . . . . . Route ------- -11/Scrapyard -10/Materials (discovered 4 exits: *Mat x3 / [*Min]) -9/Materials (discovered 2 exits: *Min x2) -9/Mines -8/Materials (discovered 1 exit: [*Fac]) History --------- Turn | Location | Event 3 | -11/Scrapyard | Discovered new exit (range 16) 114 | -11/Scrapyard | Entered Materials 115 | -10/Materials | Met a group of wandering Federalists 237 | -10/Materials | Discovered new exit (range 9) 320 | -10/Materials | Build established: Mutant 565 | -10/Materials | Identified exit to Materials 664 | -10/Materials | Entered another Materials area 664 | -9/Materials | Evolved 2 slots: Utility x2 1370 | -9/Materials | Discovered new exit (range 15) 1420 | -9/Materials | Core integrity fell below 50% 1453 | -9/Materials | Lost 3 parts (3u) 1577 | -9/Materials | Identified exit to Mines 1664 | -9/Materials | Entered Mines 1676 | -9/Mines | Assembled infested the area 1681 | -9/Mines | Assisted by a Guerilla fighting off Assembled 1684 | -9/Mines | Discovered new exit (range 9) 1689 | -9/Mines | Received a Rocket Launcher from a helpful Derelict 1692 | -9/Mines | Entered Materials 1692 | -8/Materials | Evolved 2 slots: Utility x2 2051 | -8/Materials | Discovered new exit (range 7) 2199 | -8/Materials | Garrison activated, responded to threat 2307 | -8/Materials | Core integrity fell below 50% 2312 | -8/Materials | Core integrity fell below 20% 2346 | -8/Materials | Destroyed 14 combat bots 2355 | -8/Materials | Lost 10 parts (2p2n2u4w) 2509 | -8/Materials | Destroyed by G-47 Trooper with Particle Gun Last Messages --------------- to cause issues with some software requiring use of the Alt key, leaving a program unaware of the key's current state, and defaulting to off when the program checks. Keyboard commands such as panning the map may instead move Cogmind after an Alt-Tab. To prevent this possibility, consider tapping the Alt key again after returning to Cogmind in order to reset it. See the manual for more info. 02453_ Wheel destroyed. 02462_ K-01 Serf collects debris. 02473_ Lgt. Ion Engine destroyed. 02483_ Slammed into G-47 Trooper. 02483_ Assault Cannon broken. 02483_ Destabilizing: Short circuit. 02493_ Slammed into G-47 Trooper. 02493_ Imp. Targeting Computer broken. 02493_ Destabilizing: Short circuit. 02497_ Critical hit (Burn: +37). 02501_ Hrd. Medium Armor Plating destroyed. Map ----- +----------------------------------------------------+ | ## #?# """"" #? ???# """ #???????????? | | ## #?# """ #? ???# #???????????? | | ##### #?# =## ???# #???????????? | | #### #?############ ???# """ #?##????????? | | #????????????# ???# """ # #????????? | | ######????????????# ???# """ #?????????? | | #########??????????# #??# #???????????? | | !!!!%#??????????# #### #???????????? | | !!!##??######### #???????????? | | !!!!#??? #???????????? | | [[#??? #???????????? | | / #???? """ "T" #???????????? | | ########??#?? """"" """ #???????????? | | ??????????# """"" ############???????????? | | ??????????# """"" #??????????????????????? | | ??????????# """ "Y" ###????????????????????? | | ??????????# """ #^???????????????????? | | ??????????# +????????????????????? | | ??????????# #????????????????????? | | ??????????############### #????????????????????? | | ??????????????# = #k #????????????????????? | | ??????????????# # #????#####???????????? | | ??????????????# !! % # #### #####???????? | | ??????????????# ! # ????? | | ??????????????# % g ????? | | ??????????????# " #@ ????? | | ??????????????# [ %"" ######## ### ##??????? | | ???????????#### [ %""" #????????#####???????????? | | ????""" ## #####/##########???????????????????? | | % % ###?????????????????? | | % !#????????????????? | | !% % =% % !#???????????????? | | ?#### %%% !#???????????????? | | ????# % #+##"# !#???????????????? | | ????##### % ?????????????????????? | | ????????# # " " #????????????????????? | | ????????# # "G" #????????????????????? | | ????????# % """ #????????????????????? | | ????????# # #????????????????????? | | ????????# % " #####??????????????????????? | | ??????? % "Y" " #??????????????????????????? | | ??????? %""" ??????????????????????????? | | ???????? ?? ??????????????????????????? | | ?????????????? ??????????????????????????? | | ????????????? ###+#####??????????????????????????? | | ?????????????????????????????????????????????????? | | ?????????????????????????????????????????????????? | | ?????????????????????????????????????????????????? | | ?????????????????????????????????????????????????? | | ?????????????????????????????????????????????????? | +----------------------------------------------------+ Best States ------------- Heat Dissipation 31 Energy Generation 14 Energy Capacity 280 Matter Stores 300 Matter Capacity 300 Sight Range 16 Terrain Scan Density 10 Armor Coverage 225 Weapon Shielding 33 Evasion (%) 55 Targeting Accuracy 26 Item Schematics ----------------- Targeting Computer | -9/Materials | Scanalyzed Robot Schematics ------------------ None Fabricated ------------ Nothing Repaired ---------- Nothing Studied --------- Lgt. Cannon | -9/Materials | Hacked Imp. Light Cannon | -9/Materials | Hacked Alien Tech Used ----------------- None Achievements -------------- None Challenges ------------ None Game ------ Seed SmartbombMicrowarpDriver Manual? 0 Play Time 00:45:14 Cumulative 153.4 hours Start 2026.08.25 @ 21:11:52 End 2026.08.27 @ 16:03:32 Sessions 3 Manual Loads 0 Difficulty Rogue Special Mode None Game No. 110 Rogue 110 Adventurer 0 Explorer 0 Win Type - Total 1 Types 1/0/0/0/0/0/0/0/0/0 Lore% 63 Gallery% 49 Achievement% 44 Wizard Run 0 Options --------- Layout 1 ASCII 0 Keyboard 1 Movement Arrows Keybinds 0 Fullscreen 1 Font 24/Smallcaps Map View 50x35 Zoom Use 0% Tactical HUD 1 Map Filters NONE Filters NONE Steam 1 RUN: 9cffbf03-d4b5-4c9a-a5c3-3ac2854fa982